[Event "Late-Titled-Tuesday-Blitz-July-09-2024"]
[Site "Chess.com"]
[Date "2024.07.09"]
[Round "10"]
[White "shirovin"]
[Black "th3d4rkness"]
[Result "1-0"]
[WhiteElo "2085"]
[BlackElo "2222"]
[TimeControl "180+1"]
[EndTime "15:51:23 PDT"]
[Termination "shirovin won by resignation"]

1. e4 {[%clk 0:03:00.9]} 1... c5 {[%clk 0:02:59.6]} 2. d4 {[%clk 0:03:00.2]}
2... cxd4 {[%clk 0:02:59.5]} 3. c3 {[%clk 0:03:00.5]} 3... d5 {[%clk 0:02:59.3]}
4. exd5 {[%clk 0:02:55.1]} 4... Qxd5 {[%clk 0:02:58.9]} 5. Nf3 {[%clk 0:02:53]}
5... Nc6 {[%clk 0:02:56.6]} 6. cxd4 {[%clk 0:02:51.6]} 6... e6 {[%clk
0:02:54.4]} 7. Nc3 {[%clk 0:02:50.7]} 7... Bb4 {[%clk 0:02:54.6]} 8. Be2 {[%clk
0:02:43.6]} 8... Nf6 {[%clk 0:02:53.1]} 9. O-O {[%clk 0:02:42.7]} 9... Qd8
{[%clk 0:02:50.5]} 10. a3 {[%clk 0:02:39.1]} 10... Ke7 {[%clk 0:02:49.6]} 11.
axb4 {[%clk 0:02:34.6]} 11... Nxb4 {[%clk 0:02:47.9]} 12. Be3 {[%clk 0:02:28]}
12... Re8 {[%clk 0:02:46]} 13. Ne5 {[%clk 0:02:20.2]} 13... Kf8 {[%clk
0:02:44.6]} 14. Qb3 {[%clk 0:02:17.2]} 14... Nbd5 {[%clk 0:02:43]} 15. Nxd5
{[%clk 0:02:14.7]} 15... Nxd5 {[%clk 0:02:41.9]} 16. Bf3 {[%clk 0:02:14.3]}
16... f6 {[%clk 0:02:28.3]} 17. Bxd5 {[%clk 0:02:09.7]} 17... exd5 {[%clk
0:02:27.2]} 18. Nf3 {[%clk 0:02:07.7]} 18... Kg8 {[%clk 0:02:26.9]} 19. Rfc1
{[%clk 0:02:03.8]} 19... Bg4 {[%clk 0:02:23.1]} 20. Rc5 {[%clk 0:02:00.5]} 20...
Bxf3 {[%clk 0:02:21.5]} 21. gxf3 {[%clk 0:02:00.2]} 21... Kh8 {[%clk 0:02:15.3]}
22. Qxd5 {[%clk 0:01:59.1]} 22... Qb6 {[%clk 0:02:12.8]} 23. Rb5 {[%clk
0:01:56.6]} 23... Qc7 {[%clk 0:02:12.2]} 24. Rxb7 {[%clk 0:01:52.9]} 24... Qc2
{[%clk 0:02:07.7]} 25. Qf7 {[%clk 0:01:49.3]} 25... Rg8 {[%clk 0:02:05.7]} 26.
Raxa7 {[%clk 0:01:45.8]} 26... Rxa7 {[%clk 0:02:05.1]} 27. Rxa7 {[%clk 0:01:45]}
27... Qxb2 {[%clk 0:02:01.4]} 28. d5 {[%clk 0:01:29]} 28... Qe5 {[%clk
0:01:58.5]} 29. Re7 {[%clk 0:01:22.1]} 29... Qf5 {[%clk 0:01:57.4]} 30. Kg2
{[%clk 0:01:11.4]} 30... h5 {[%clk 0:01:56.5]} 31. h3 {[%clk 0:01:09.3]} 31...
h4 {[%clk 0:01:41.9]} 32. d6 {[%clk 0:01:07.1]} 32... Qd3 {[%clk 0:01:32.2]} 33.
d7 {[%clk 0:01:05.9]} 1-0

[Event "Late-Titled-Tuesday-Blitz-July-09-2024"]
[Site "Chess.com"]
[Date "2024.07.09"]
[Round "10"]
[White "ReinisUz"]
[Black "stollenmonster"]
[Result "1-0"]
[WhiteElo "2570"]
[BlackElo "2832"]
[TimeControl "180+1"]
[EndTime "15:51:35 PDT"]
[Termination "ReinisUz won by resignation"]

1. c4 {[%clk 0:03:00]} 1... e6 {[%clk 0:02:59.6]} 2. Nc3 {[%clk 0:02:59.3]} 2...
d5 {[%clk 0:02:58.3]} 3. d4 {[%clk 0:02:59.2]} 3... Nf6 {[%clk 0:02:58.6]} 4.
cxd5 {[%clk 0:02:59.3]} 4... Nxd5 {[%clk 0:02:57.7]} 5. e4 {[%clk 0:02:58.3]}
5... Nxc3 {[%clk 0:02:58.4]} 6. bxc3 {[%clk 0:02:59]} 6... b6 {[%clk 0:02:59.2]}
7. Be3 {[%clk 0:02:50.3]} 7... Bb7 {[%clk 0:02:59.5]} 8. f3 {[%clk 0:02:50.5]}
8... Be7 {[%clk 0:02:59.4]} 9. Bd3 {[%clk 0:02:48.2]} 9... Nd7 {[%clk
0:02:59.9]} 10. Ne2 {[%clk 0:02:48.5]} 10... O-O {[%clk 0:03:00.3]} 11. O-O
{[%clk 0:02:48.6]} 11... c5 {[%clk 0:03:01]} 12. f4 {[%clk 0:02:45.7]} 12... Nf6
{[%clk 0:02:59.5]} 13. Ng3 {[%clk 0:02:36.5]} 13... g6 {[%clk 0:02:55.1]} 14. f5
{[%clk 0:02:33.1]} 14... exf5 {[%clk 0:02:55.2]} 15. exf5 {[%clk 0:02:34]} 15...
Nd5 {[%clk 0:02:55.5]} 16. Bh6 {[%clk 0:02:08.8]} 16... Nxc3 {[%clk 0:02:47.6]}
17. Qc2 {[%clk 0:01:44.1]} 17... Qxd4+ {[%clk 0:02:44.2]} 18. Kh1 {[%clk
0:01:44]} 18... Nd5 {[%clk 0:02:28.8]} 19. fxg6 {[%clk 0:01:33]} 19... Nb4
{[%clk 0:02:07.8]} 20. Qe2 {[%clk 0:01:26.9]} 20... Qxd3 {[%clk 0:01:45]} 21.
Qxe7 {[%clk 0:01:20.2]} 21... Qd5 {[%clk 0:01:42.6]} 22. Ne4 {[%clk 0:00:48.4]}
22... hxg6 {[%clk 0:01:25.3]} 23. Nf6+ {[%clk 0:00:45.5]} 1-0

[Event "Late-Titled-Tuesday-Blitz-July-09-2024"]
[Site "Chess.com"]
[Date "2024.07.09"]
[Round "10"]
[White "Statham_01"]
[Black "norwaytoadog"]
[Result "1-0"]
[WhiteElo "2661"]
[BlackElo "2363"]
[TimeControl "180+1"]
[EndTime "15:51:36 PDT"]
[Termination "Statham_01 won by resignation"]

1. Na3 {[%clk 0:02:59.8]} 1... e5 {[%clk 0:02:54.9]} 2. Nc4 {[%clk 0:02:59.8]}
2... Nc6 {[%clk 0:02:53.8]} 3. e4 {[%clk 0:03:00]} 3... Nf6 {[%clk 0:02:52.9]}
4. d3 {[%clk 0:03:00.1]} 4... Bc5 {[%clk 0:02:50.8]} 5. Be3 {[%clk 0:03:00]}
5... Bxe3 {[%clk 0:02:47.3]} 6. Nxe3 {[%clk 0:03:00.9]} 6... d5 {[%clk
0:02:46.1]} 7. exd5 {[%clk 0:03:01.8]} 7... Nxd5 {[%clk 0:02:46.2]} 8. Nf3
{[%clk 0:03:02]} 8... O-O {[%clk 0:02:45.1]} 9. Be2 {[%clk 0:03:01.9]} 9... Nf4
{[%clk 0:02:44.3]} 10. O-O {[%clk 0:03:01]} 10... Qf6 {[%clk 0:02:38.8]} 11. Re1
{[%clk 0:02:53.2]} 11... Nxe2+ {[%clk 0:02:34.6]} 12. Qxe2 {[%clk 0:02:52]}
12... Bd7 {[%clk 0:02:33.7]} 13. Nc4 {[%clk 0:02:46.5]} 13... Rfe8 {[%clk
0:02:23.1]} 14. Nfxe5 {[%clk 0:02:30.3]} 14... Nd4 {[%clk 0:01:46.3]} 15. Qe4
{[%clk 0:02:21.8]} 15... Bf5 {[%clk 0:00:45.8]} 16. Qxd4 {[%clk 0:02:17.7]}
16... Rad8 {[%clk 0:00:43.9]} 17. Qf4 {[%clk 0:02:05.7]} 17... b5 {[%clk
0:00:41.4]} 18. Nd2 {[%clk 0:01:55.8]} 18... g5 {[%clk 0:00:36.4]} 19. Ng4
{[%clk 0:01:51.9]} 19... Qg6 {[%clk 0:00:29.4]} 20. Qxf5 {[%clk 0:01:49.8]} 1-0

[Event "Late-Titled-Tuesday-Blitz-July-09-2024"]
[Site "Chess.com"]
[Date "2024.07.09"]
[Round "10"]
[White "manitodeplomo"]
[Black "Boundless_Strike"]
[Result "0-1"]
[WhiteElo "2611"]
[BlackElo "2813"]
[TimeControl "180+1"]
[EndTime "15:51:41 PDT"]
[Termination "Boundless_Strike won by resignation"]

1. d4 {[%clk 0:03:00.9]} 1... e5 {[%clk 0:02:59.4]} 2. dxe5 {[%clk 0:03:00.6]}
2... d6 {[%clk 0:03:00.1]} 3. Nf3 {[%clk 0:03:00.8]} 3... Nc6 {[%clk 0:03:00.4]}
4. Bf4 {[%clk 0:03:00.3]} 4... Bg4 {[%clk 0:03:00.1]} 5. exd6 {[%clk 0:03:00]}
5... Qf6 {[%clk 0:03:00.5]} 6. e3 {[%clk 0:03:00.2]} 6... Bxd6 {[%clk
0:02:55.7]} 7. Bxd6 {[%clk 0:02:55.4]} 7... O-O-O {[%clk 0:02:56]} 8. Nbd2
{[%clk 0:02:54.4]} 8... Rxd6 {[%clk 0:02:53.9]} 9. c3 {[%clk 0:02:54.3]} 9...
Nge7 {[%clk 0:02:54.4]} 10. Qa4 {[%clk 0:02:53.4]} 10... Qg6 {[%clk 0:02:48]}
11. Be2 {[%clk 0:02:34.6]} 11... Bxf3 {[%clk 0:02:38]} 12. Nxf3 {[%clk
0:02:24.2]} 12... Qxg2 {[%clk 0:02:30.5]} 13. Rg1 {[%clk 0:02:24]} 13... Qh3
{[%clk 0:02:30.4]} 14. Rxg7 {[%clk 0:02:20.3]} 14... Kb8 {[%clk 0:02:25.3]} 15.
Qg4 {[%clk 0:02:13.4]} 15... Qh6 {[%clk 0:02:21.2]} 16. Rxf7 {[%clk 0:02:03.5]}
16... Ng6 {[%clk 0:02:08.6]} 17. Qg5 {[%clk 0:01:54.5]} 17... Qh3 {[%clk
0:02:05]} 18. Rf6 {[%clk 0:01:37.7]} 18... Rxf6 {[%clk 0:02:03.5]} 19. Qxf6
{[%clk 0:01:37.3]} 19... Rf8 {[%clk 0:02:04]} 20. Qg7 {[%clk 0:01:29.3]} 20...
Rxf3 {[%clk 0:01:59.1]} 21. Bxf3 {[%clk 0:01:28.8]} 21... Qxf3 {[%clk 0:02:00]}
22. Qxh7 {[%clk 0:01:28.8]} 22... Nce7 {[%clk 0:01:52.4]} 23. Rd1 {[%clk
0:01:25.3]} 23... a6 {[%clk 0:01:47.7]} 24. Rd8+ {[%clk 0:00:58.9]} 24... Ka7
{[%clk 0:01:46.3]} 25. Re8 {[%clk 0:00:56.2]} 25... Qh1+ {[%clk 0:01:43.7]} 26.
Ke2 {[%clk 0:00:55.6]} 26... Qe4 {[%clk 0:01:43.4]} 27. Kf1 {[%clk 0:00:50.7]}
27... Qb1+ {[%clk 0:01:36.4]} 28. Kg2 {[%clk 0:00:46.2]} 28... Nf4+ {[%clk
0:01:36.5]} 0-1

[Event "Late-Titled-Tuesday-Blitz-July-09-2024"]
[Site "Chess.com"]
[Date "2024.07.09"]
[Round "10"]
[White "Oleg_Papayan"]
[Black "mortngabriel"]
[Result "1-0"]
[WhiteElo "2594"]
[BlackElo "2468"]
[TimeControl "180+1"]
[EndTime "15:51:53 PDT"]
[Termination "Oleg_Papayan won by resignation"]

1. d4 {[%clk 0:03:00.9]} 1... d5 {[%clk 0:02:56.6]} 2. Nc3 {[%clk 0:03:00.4]}
2... e6 {[%clk 0:02:57.2]} 3. Bf4 {[%clk 0:02:59.6]} 3... Bb4 {[%clk 0:02:47.1]}
4. Qd3 {[%clk 0:02:58.9]} 4... Nf6 {[%clk 0:02:42.8]} 5. a3 {[%clk 0:02:58.6]}
5... Bd6 {[%clk 0:02:39.3]} 6. e3 {[%clk 0:02:52.9]} 6... a6 {[%clk 0:02:37.1]}
7. Nf3 {[%clk 0:02:52.5]} 7... c5 {[%clk 0:02:35.9]} 8. dxc5 {[%clk 0:02:51.3]}
8... Bxc5 {[%clk 0:02:32]} 9. O-O-O {[%clk 0:02:13.5]} 9... Nc6 {[%clk 0:02:16]}
10. e4 {[%clk 0:01:58.6]} 10... Ng4 {[%clk 0:01:52.2]} 11. exd5 {[%clk
0:01:53.9]} 11... Nxf2 {[%clk 0:01:51.7]} 12. Qc4 {[%clk 0:01:46.2]} 12... Nxd1
{[%clk 0:01:48.3]} 13. Qxc5 {[%clk 0:01:19.1]} 13... Nxc3 {[%clk 0:01:36]} 14.
Qxc3 {[%clk 0:01:20]} 14... Ne7 {[%clk 0:00:51.6]} 15. d6 {[%clk 0:01:12.6]}
15... Nd5 {[%clk 0:00:48.4]} 16. Qxg7 {[%clk 0:01:12.5]} 16... Qf6 {[%clk
0:00:48]} 17. Qxf6 {[%clk 0:01:10.6]} 17... Nxf6 {[%clk 0:00:48.9]} 18. Be5
{[%clk 0:01:11.3]} 1-0

[Event "Late-Titled-Tuesday-Blitz-July-09-2024"]
[Site "Chess.com"]
[Date "2024.07.09"]
[Round "10"]
[White "AlexanderMatlak"]
[Black "santig8"]
[Result "1-0"]
[WhiteElo "2504"]
[BlackElo "2275"]
[TimeControl "180+1"]
[EndTime "15:52:10 PDT"]
[Termination "AlexanderMatlak won by resignation"]

1. c4 {[%clk 0:03:00.6]} 1... Nf6 {[%clk 0:02:06.3]} 2. Nf3 {[%clk 0:02:59.1]}
2... d6 {[%clk 0:02:05.4]} 3. Nc3 {[%clk 0:02:58.5]} 3... e5 {[%clk 0:02:04.6]}
4. g3 {[%clk 0:02:58.6]} 4... g6 {[%clk 0:02:00.2]} 5. Bg2 {[%clk 0:02:58.7]}
5... Bg7 {[%clk 0:01:59.7]} 6. O-O {[%clk 0:02:59.4]} 6... O-O {[%clk
0:01:59.1]} 7. b4 {[%clk 0:02:59.7]} 7... e4 {[%clk 0:01:59]} 8. Ne1 {[%clk
0:02:58.4]} 8... Re8 {[%clk 0:01:47.5]} 9. Bb2 {[%clk 0:02:55.7]} 9... c6 {[%clk
0:01:46]} 10. d3 {[%clk 0:02:55.1]} 10... e3 {[%clk 0:01:45.4]} 11. f4 {[%clk
0:02:54.9]} 11... Ng4 {[%clk 0:01:44.4]} 12. Qc2 {[%clk 0:02:52.2]} 12... h5
{[%clk 0:01:39.3]} 13. Nf3 {[%clk 0:02:51.4]} 13... Na6 {[%clk 0:01:29]} 14. a3
{[%clk 0:02:49.1]} 14... Nc7 {[%clk 0:01:27.2]} 15. Ne4 {[%clk 0:02:48.9]} 15...
Ne6 {[%clk 0:01:22.7]} 16. Bxg7 {[%clk 0:02:46.5]} 16... Nxg7 {[%clk 0:01:21.1]}
17. h3 {[%clk 0:02:38.8]} 17... Nf6 {[%clk 0:01:16.4]} 18. Nfg5 {[%clk
0:02:35.6]} 18... Nf5 {[%clk 0:01:14.2]} 19. Qb2 {[%clk 0:02:30.6]} 19... Nxe4
{[%clk 0:01:09.7]} 20. Nxe4 {[%clk 0:02:31.5]} 20... Rxe4 {[%clk 0:01:08.8]} 21.
dxe4 {[%clk 0:02:23.7]} 21... Nxg3 {[%clk 0:01:07.6]} 22. Rf3 {[%clk 0:02:22.5]}
22... Qh4 {[%clk 0:01:05.8]} 23. f5 {[%clk 0:02:09]} 23... gxf5 {[%clk
0:00:58.5]} 24. exf5 {[%clk 0:02:09.8]} 24... Bxf5 {[%clk 0:00:57.7]} 25. Rxe3
{[%clk 0:01:43.6]} 25... Bxh3 {[%clk 0:00:55.3]} 26. Qc3 {[%clk 0:01:34]} 26...
Nf5 {[%clk 0:00:39.2]} 27. Rxh3 {[%clk 0:01:30.7]} 27... Qg4 {[%clk 0:00:37.2]}
28. Rf1 {[%clk 0:01:18.8]} 28... Kh7 {[%clk 0:00:35.6]} 29. Qd3 {[%clk
0:01:15.5]} 1-0

[Event "Late-Titled-Tuesday-Blitz-July-09-2024"]
[Site "Chess.com"]
[Date "2024.07.09"]
[Round "10"]
[White "Nbk90"]
[Black "katharinareinecke"]
[Result "1-0"]
[WhiteElo "2234"]
[BlackElo "2077"]
[TimeControl "180+1"]
[EndTime "15:52:21 PDT"]
[Termination "Nbk90 won by resignation"]

1. Nf3 {[%clk 0:03:00.9]} 1... d5 {[%clk 0:02:58.1]} 2. b3 {[%clk 0:03:01.1]}
2... Nf6 {[%clk 0:02:57.8]} 3. d4 {[%clk 0:03:00.9]} 3... e6 {[%clk 0:02:57.7]}
4. Bb2 {[%clk 0:03:01.3]} 4... Be7 {[%clk 0:02:57.7]} 5. e3 {[%clk 0:03:01.8]}
5... O-O {[%clk 0:02:57.9]} 6. Bd3 {[%clk 0:03:02.4]} 6... c5 {[%clk 0:02:58.1]}
7. Nbd2 {[%clk 0:03:02.8]} 7... Nc6 {[%clk 0:02:58.1]} 8. O-O {[%clk 0:03:03.2]}
8... a6 {[%clk 0:02:57.6]} 9. Ne5 {[%clk 0:03:03]} 9... Nxe5 {[%clk 0:02:55.3]}
10. dxe5 {[%clk 0:03:02.7]} 10... Nd7 {[%clk 0:02:54.3]} 11. f4 {[%clk
0:03:03.2]} 11... g6 {[%clk 0:02:54.1]} 12. Nf3 {[%clk 0:03:02.8]} 12... b5
{[%clk 0:02:52.5]} 13. c4 {[%clk 0:02:57]} 13... bxc4 {[%clk 0:02:49.1]} 14.
bxc4 {[%clk 0:02:57.1]} 14... Bb7 {[%clk 0:02:49.1]} 15. Nd2 {[%clk 0:02:54.2]}
15... Nb6 {[%clk 0:02:37.7]} 16. Qe2 {[%clk 0:02:39.4]} 16... dxc4 {[%clk
0:02:35.6]} 17. Nxc4 {[%clk 0:02:40.3]} 17... Nxc4 {[%clk 0:02:26.1]} 18. Bxc4
{[%clk 0:02:41.2]} 18... Bd5 {[%clk 0:02:26.3]} 19. Rfd1 {[%clk 0:02:37.9]}
19... Bxc4 {[%clk 0:02:25]} 20. Qxc4 {[%clk 0:02:38.8]} 20... Qc7 {[%clk
0:02:14.8]} 21. Ba3 {[%clk 0:02:37.3]} 21... Rfd8 {[%clk 0:02:13.6]} 22. Rac1
{[%clk 0:02:36.5]} 22... Rxd1+ {[%clk 0:02:12.5]} 23. Rxd1 {[%clk 0:02:36.8]}
23... Rc8 {[%clk 0:02:09.9]} 24. Qxa6 {[%clk 0:02:32]} 24... c4 {[%clk
0:02:08.2]} 25. Bxe7 {[%clk 0:02:30.1]} 25... c3 {[%clk 0:02:03]} 26. Ba3 {[%clk
0:02:29.2]} 26... c2 {[%clk 0:01:58.6]} 27. Rc1 {[%clk 0:02:29]} 27... Qc3
{[%clk 0:01:50.3]} 28. Kf2 {[%clk 0:02:17.8]} 28... Rd8 {[%clk 0:01:44.6]} 29.
Bb4 {[%clk 0:02:01.4]} 29... Rd2+ {[%clk 0:01:35.3]} 30. Kf3 {[%clk 0:02:01.5]}
30... Qxb4 {[%clk 0:01:08.2]} 31. Qc8+ {[%clk 0:02:01]} 31... Kg7 {[%clk
0:01:06.7]} 32. Rxc2 {[%clk 0:02:00.6]} 32... Rxc2 {[%clk 0:01:02.3]} 33. Qxc2
{[%clk 0:02:01.5]} 33... Qb7+ {[%clk 0:01:00.5]} 34. Kg3 {[%clk 0:01:58.4]}
34... Qa7 {[%clk 0:00:57.4]} 35. Qd2 {[%clk 0:01:56.6]} 35... h5 {[%clk
0:00:56.1]} 36. h3 {[%clk 0:01:55.6]} 36... Qa3 {[%clk 0:00:53.9]} 37. Kh2
{[%clk 0:01:51.7]} 37... Kh7 {[%clk 0:00:52.6]} 38. g4 {[%clk 0:01:50.1]} 38...
hxg4 {[%clk 0:00:51.3]} 39. hxg4 {[%clk 0:01:51]} 39... Kg7 {[%clk 0:00:51.8]}
40. Kg3 {[%clk 0:01:43.5]} 40... Kf8 {[%clk 0:00:48]} 41. Qd6+ {[%clk 0:01:29]}
41... Qxd6 {[%clk 0:00:44.7]} 42. exd6 {[%clk 0:01:29.9]} 42... Ke8 {[%clk
0:00:45]} 43. e4 {[%clk 0:01:30.4]} 43... f6 {[%clk 0:00:39.6]} 44. e5 {[%clk
0:01:30.2]} 44... fxe5 {[%clk 0:00:40.1]} 45. fxe5 {[%clk 0:01:30.9]} 45... Kd7
{[%clk 0:00:40.5]} 46. a4 {[%clk 0:01:30.7]} 1-0

[Event "Late-Titled-Tuesday-Blitz-July-09-2024"]
[Site "Chess.com"]
[Date "2024.07.09"]
[Round "10"]
[White "Martins-BR"]
[Black "Hattori-Hanzo78"]
[Result "0-1"]
[WhiteElo "2431"]
[BlackElo "2596"]
[TimeControl "180+1"]
[EndTime "15:52:29 PDT"]
[Termination "Hattori-Hanzo78 won on time"]

1. e4 {[%clk 0:03:00.9]} 1... e6 {[%clk 0:02:59.1]} 2. d4 {[%clk 0:02:59.7]}
2... d5 {[%clk 0:03:00]} 3. Nc3 {[%clk 0:02:59.6]} 3... Nf6 {[%clk 0:02:59.9]}
4. Bg5 {[%clk 0:02:57.2]} 4... dxe4 {[%clk 0:02:57.1]} 5. Nxe4 {[%clk
0:02:55.9]} 5... Be7 {[%clk 0:02:57.6]} 6. Bxf6 {[%clk 0:02:55.2]} 6... gxf6
{[%clk 0:02:57.5]} 7. c4 {[%clk 0:02:54.7]} 7... f5 {[%clk 0:02:55.2]} 8. Nc3
{[%clk 0:02:54.3]} 8... Bf6 {[%clk 0:02:55.4]} 9. Nf3 {[%clk 0:02:53.5]} 9... c5
{[%clk 0:02:48.2]} 10. d5 {[%clk 0:02:48.4]} 10... e5 {[%clk 0:02:47.9]} 11. g3
{[%clk 0:02:32.2]} 11... e4 {[%clk 0:02:47.3]} 12. Nd2 {[%clk 0:02:28.8]} 12...
Nd7 {[%clk 0:02:42.8]} 13. Be2 {[%clk 0:02:09.4]} 13... Ne5 {[%clk 0:02:38.8]}
14. Qc2 {[%clk 0:02:04.9]} 14... Qb6 {[%clk 0:02:29.5]} 15. O-O-O {[%clk
0:01:59.2]} 15... Bd7 {[%clk 0:02:28.8]} 16. Rde1 {[%clk 0:01:49.5]} 16... O-O-O
{[%clk 0:02:28.4]} 17. f4 {[%clk 0:01:27.7]} 17... Ng6 {[%clk 0:02:22.1]} 18.
Nf1 {[%clk 0:01:04.2]} 18... h5 {[%clk 0:02:17.5]} 19. h4 {[%clk 0:01:01.6]}
19... Bd4 {[%clk 0:02:14]} 20. Bd1 {[%clk 0:00:52.6]} 20... Ne7 {[%clk 0:02:01]}
21. Rh2 {[%clk 0:00:43]} 21... Kb8 {[%clk 0:01:59.3]} 22. Ne2 {[%clk 0:00:39.9]}
22... Nc8 {[%clk 0:01:56.6]} 23. Qd2 {[%clk 0:00:32.4]} 23... Nd6 {[%clk
0:01:56.2]} 24. b3 {[%clk 0:00:24.7]} 24... a5 {[%clk 0:01:56.4]} 25. a4 {[%clk
0:00:20.5]} 25... Bxa4 {[%clk 0:01:45.4]} 26. Nxd4 {[%clk 0:00:16.6]} 26... cxd4
{[%clk 0:01:44.9]} 27. Qa2 {[%clk 0:00:05.6]} 27... Qb4 {[%clk 0:01:35.8]} 28.
Rb2 {[%clk 0:00:05.6]} 28... Qxe1 {[%clk 0:01:35.3]} 29. Qxa4 {[%clk 0:00:04.9]}
29... Qb4 {[%clk 0:01:29.7]} 0-1

[Event "Late-Titled-Tuesday-Blitz-July-09-2024"]
[Site "Chess.com"]
[Date "2024.07.09"]
[Round "10"]
[White "Beaterawn"]
[Black "MatthewG-p4p"]
[Result "0-1"]
[WhiteElo "2457"]
[BlackElo "2895"]
[TimeControl "180+1"]
[EndTime "15:52:30 PDT"]
[Termination "MatthewG-p4p won by resignation"]

1. e4 {[%clk 0:03:00.9]} 1... e6 {[%clk 0:03:00.5]} 2. d4 {[%clk 0:03:00.4]}
2... d5 {[%clk 0:03:01.4]} 3. Nc3 {[%clk 0:03:00.8]} 3... Bb4 {[%clk 0:03:01.3]}
4. e5 {[%clk 0:03:01.2]} 4... Ne7 {[%clk 0:03:02]} 5. a3 {[%clk 0:03:01.3]} 5...
Bxc3+ {[%clk 0:03:02.7]} 6. bxc3 {[%clk 0:03:02.1]} 6... c5 {[%clk 0:03:03.6]}
7. a4 {[%clk 0:03:01.7]} 7... b6 {[%clk 0:03:03.7]} 8. Bb5+ {[%clk 0:03:00.8]}
8... Bd7 {[%clk 0:03:03.9]} 9. Bd3 {[%clk 0:03:01.3]} 9... Qc7 {[%clk
0:03:04.8]} 10. Nf3 {[%clk 0:03:00.8]} 10... Nbc6 {[%clk 0:03:05.3]} 11. O-O
{[%clk 0:02:43.7]} 11... cxd4 {[%clk 0:03:05.1]} 12. cxd4 {[%clk 0:02:43.9]}
12... Nb4 {[%clk 0:03:05.8]} 13. Ba3 {[%clk 0:02:43.7]} 13... Nxd3 {[%clk
0:03:06.2]} 14. cxd3 {[%clk 0:02:34.6]} 14... Bc6 {[%clk 0:03:01.3]} 15. Rc1
{[%clk 0:02:32.7]} 15... Qd7 {[%clk 0:03:01.2]} 16. Qd2 {[%clk 0:02:30]} 16...
Rc8 {[%clk 0:02:58.5]} 17. Qg5 {[%clk 0:02:29]} 17... Nf5 {[%clk 0:02:50.5]} 18.
Nh4 {[%clk 0:02:20.4]} 18... h6 {[%clk 0:02:49.7]} 19. Qg4 {[%clk 0:02:18.1]}
19... g5 {[%clk 0:02:38.5]} 20. Nxf5 {[%clk 0:02:12.6]} 20... exf5 {[%clk
0:02:39.4]} 21. Qf3 {[%clk 0:02:13.2]} 21... Qe6 {[%clk 0:02:39.7]} 22. Rc3
{[%clk 0:02:00.3]} 22... Kd7 {[%clk 0:02:32.6]} 23. a5 {[%clk 0:01:58.9]} 23...
Ba4 {[%clk 0:02:26.6]} 24. Rfc1 {[%clk 0:01:54.8]} 24... Rxc3 {[%clk 0:02:23.4]}
25. Rxc3 {[%clk 0:01:55.7]} 25... Rc8 {[%clk 0:02:22.7]} 26. Rxc8 {[%clk
0:01:51.7]} 26... Kxc8 {[%clk 0:02:23.6]} 27. axb6 {[%clk 0:01:51.1]} 27... axb6
{[%clk 0:02:21.9]} 28. h4 {[%clk 0:01:49.8]} 28... Kb7 {[%clk 0:02:19]} 29. hxg5
{[%clk 0:01:44.8]} 29... hxg5 {[%clk 0:02:19.9]} 30. Qe3 {[%clk 0:01:43.4]}
30... f4 {[%clk 0:02:15.4]} 31. Qc1 {[%clk 0:01:43.1]} 31... Bb5 {[%clk
0:02:12.6]} 32. Qc3 {[%clk 0:01:35.1]} 32... g4 {[%clk 0:02:03.4]} 33. Bd6
{[%clk 0:01:34.3]} 33... Bc6 {[%clk 0:02:02.5]} 34. Qb2 {[%clk 0:01:28.9]} 34...
g3 {[%clk 0:01:56.9]} 35. Bc5 {[%clk 0:01:16.9]} 35... Bd7 {[%clk 0:01:55.3]}
36. fxg3 {[%clk 0:00:51.5]} 36... fxg3 {[%clk 0:01:55.7]} 37. Kf1 {[%clk
0:00:19.6]} 37... Qf5+ {[%clk 0:01:52.5]} 38. Ke1 {[%clk 0:00:19.6]} 38... Qf2+
{[%clk 0:01:52.6]} 39. Qxf2 {[%clk 0:00:18]} 39... gxf2+ {[%clk 0:01:53.5]} 40.
Kxf2 {[%clk 0:00:18.1]} 40... bxc5 {[%clk 0:01:54.4]} 41. dxc5 {[%clk
0:00:18.8]} 41... d4 {[%clk 0:01:54.1]} 42. g4 {[%clk 0:00:17.7]} 42... Bxg4
{[%clk 0:01:53.9]} 43. Kg3 {[%clk 0:00:17.6]} 43... Bf5 {[%clk 0:01:54.4]} 44.
Kf4 {[%clk 0:00:18]} 44... Bxd3 {[%clk 0:01:54.7]} 45. e6 {[%clk 0:00:16.9]}
45... fxe6 {[%clk 0:01:52.8]} 46. Ke5 {[%clk 0:00:17.3]} 46... Bc4 {[%clk
0:01:52.8]} 47. Kxd4 {[%clk 0:00:17.2]} 47... Bd5 {[%clk 0:01:53.1]} 48. Ke5
{[%clk 0:00:17.7]} 48... Kc6 {[%clk 0:01:54]} 49. Kd4 {[%clk 0:00:18.1]} 49...
Kb5 {[%clk 0:01:54.5]} 0-1

[Event "Late-Titled-Tuesday-Blitz-July-09-2024"]
[Site "Chess.com"]
[Date "2024.07.09"]
[Round "10"]
[White "artin10862"]
[Black "MKlose11"]
[Result "1-0"]
[WhiteElo "2923"]
[BlackElo "2666"]
[TimeControl "180+1"]
[EndTime "15:52:31 PDT"]
[Termination "artin10862 won by resignation"]

1. d4 {[%clk 0:03:00.9]} 1... Nf6 {[%clk 0:02:54.7]} 2. Nc3 {[%clk 0:02:56.9]}
2... c5 {[%clk 0:02:50.3]} 3. d5 {[%clk 0:02:56.1]} 3... d6 {[%clk 0:02:50.8]}
4. e4 {[%clk 0:02:55.4]} 4... g6 {[%clk 0:02:51.5]} 5. Nf3 {[%clk 0:02:48]} 5...
Bg7 {[%clk 0:02:51.1]} 6. h3 {[%clk 0:02:48.3]} 6... O-O {[%clk 0:02:51.4]} 7.
a4 {[%clk 0:02:47.5]} 7... Na6 {[%clk 0:02:49.9]} 8. Be2 {[%clk 0:02:46.3]} 8...
Nc7 {[%clk 0:02:50.1]} 9. O-O {[%clk 0:02:46.7]} 9... b6 {[%clk 0:02:49.9]} 10.
Bf4 {[%clk 0:02:43.5]} 10... Rb8 {[%clk 0:02:50]} 11. Nd2 {[%clk 0:02:43.3]}
11... a6 {[%clk 0:02:49]} 12. Nc4 {[%clk 0:02:43.8]} 12... b5 {[%clk 0:02:28.5]}
13. axb5 {[%clk 0:02:44.7]} 13... axb5 {[%clk 0:02:29.4]} 14. Na5 {[%clk
0:02:43.7]} 14... Bb7 {[%clk 0:02:29.8]} 15. Nxb5 {[%clk 0:02:32.2]} 15... Nxb5
{[%clk 0:02:28.2]} 16. Bxb5 {[%clk 0:02:31.7]} 16... Bxd5 {[%clk 0:02:19.9]} 17.
exd5 {[%clk 0:02:29.8]} 17... Rxb5 {[%clk 0:02:19.4]} 18. Nc6 {[%clk 0:02:29.7]}
18... Qd7 {[%clk 0:02:17.8]} 19. Re1 {[%clk 0:02:16.3]} 19... Re8 {[%clk
0:02:12.8]} 20. Ra7 {[%clk 0:02:05.5]} 20... Rb7 {[%clk 0:02:10.5]} 21. Rxb7
{[%clk 0:01:49.2]} 21... Qxb7 {[%clk 0:02:11.4]} 22. c4 {[%clk 0:01:49.5]} 22...
Bf8 {[%clk 0:02:01.7]} 23. Bg5 {[%clk 0:01:45]} 23... Qxb2 {[%clk 0:01:48.2]}
24. Re2 {[%clk 0:01:34.5]} 24... Qc3 {[%clk 0:01:46.2]} 25. Re3 {[%clk
0:01:31.9]} 25... Qb2 {[%clk 0:01:46.1]} 26. Qf3 {[%clk 0:01:18.2]} 26... Bg7
{[%clk 0:01:23.9]} 27. Nxe7+ {[%clk 0:01:10.9]} 27... Kf8 {[%clk 0:01:23.4]} 28.
Qf4 {[%clk 0:00:58.2]} 28... h6 {[%clk 0:00:59.4]} 29. Bxh6 {[%clk 0:00:48.9]}
29... Rxe7 {[%clk 0:00:38.4]} 30. Bxg7+ {[%clk 0:00:47.7]} 30... Kxg7 {[%clk
0:00:38.4]} 31. Rxe7 {[%clk 0:00:48.4]} 1-0